[Event "27th 4NCL Congress Open 2022"]
[Site "Harrogate"]
[Date "2022.01.22"]
[Round "2.17"]
[White "Hepworth, Peter"]
[Black "Longson, Sarah N"]
[Result "1/2-1/2"]
[ECO "D02"]
[WhiteElo "2007"]
[BlackElo "2036"]
[Annotator "ChessBase"]
[PlyCount "64"]
[EventDate "2022.01.21"]
[EventType "swiss"]
[EventCountry "ENG"]
[SourceTitle "playchess.com"]
[Source "ChessBase"]
[SourceQuality "1"]
[TimeControl "5400+30"]

1. Nf3 {[%emt 0:00:43]} Nf6 {[%emt 0:00:15]} 2. d4 {[%emt 0:00:20]} d5 {[%emt 0:00:07]} 3. Bf4 {[%emt 0:00:43]} Bf5 {[%emt 0:03:31]} 4. e3 {[%emt 0:00:36]} e6 {[%emt 0:00:39]} 5. Be2 {[%emt 0:01:12]} Bd6 {[%emt 0:03:00]} 6. Bg5 {[%emt 0:02:54]} h6 {[%emt 0:00:56]} 7. Bh4 {[%emt 0:00:13]} Nbd7 {[%emt 0:00:46]} 8. Nbd2 {[%emt 0:01:19]} c6 {[%emt 0:02:55]} 9. O-O {[%emt 0:00:58]} O-O {[%emt 0:00:41]} 10. c4 {[%emt 0:01:39]} Qe7 {[%emt 0:06:53]} 11. a3 {[%emt 0:08:48]} e5 {[%emt 0:06:23]} 12. c5 {[%emt 0:01:55]} Bc7 {[%emt 0:01:37]} 13. b4 {[%emt 0:00:22]} Rfe8 {[%emt 0:15:08]} 14. Rc1 {[%emt 0:01:09]} g5 {[%emt 0:21:07]} 15. Bg3 {[%emt 0:00:49]} Ne4 {[%emt 0:00:38]} 16. dxe5 {[%emt 0:08:00]} Nxg3 {[%emt 0:01:35]} 17. hxg3 {[%emt 0:01:02]} Nxe5 {[%emt 0:01:32]} 18. Nb3 {[%emt 0:01:22]} Ng4 {[%emt 0:04:10]} 19. Nfd4 {[%emt 0:00:51]} Nxe3 {[%emt 0:00:23]} 20. Nxf5 {[%emt 0:08:30]} Nxf5 {[%emt 0:01:14]} 21. Bd3 {[%emt 0:01:21]} Nxg3 {[%emt 0:05:23]} 22. fxg3 {[%emt 0:01:02]} Qe3+ {[%emt 0:00:03]} 23. Kh1 {[%emt 0:00:10]} Qxg3 {[%emt 0:00:13]} 24. Qh5 {[%emt 0:00:06]} Bf4 {[%emt 0:03:56]} 25. Rf3 {[%emt 0:03:47]} Re1+ {[%emt 0:01:38]} 26. Rxe1 {[%emt 0:00:05]} Qxe1+ {[%emt 0:00:04]} 27. Bf1 {[%emt 0:00:06]} Re8 {[%emt 0:07:28]} 28. g3 {[%emt 0:01:23]} Re3 {[%emt 0:00:26]} 29. gxf4 {[%emt 0:00:25]} Rxb3 {[%emt 0:00:34]} 30. Rxb3 {[%emt 0:01:17]} Qxf1+ {[%emt 0:00:04]} 31. Kh2 {[%emt 0:00:08]} Qf2+ {[%emt 0:00:46]} 32. Kh3 {[%emt 0:01:35]} Qf1+ {[%emt 0:00:36]} 1/2-1/2

[Event "27th 4NCL Congress Open 2022"]
[Site "Harrogate"]
[Date "2022.01.22"]
[Round "2.18"]
[White "Ther, Mate"]
[Black "Fathallah, Joe"]
[Result "1-0"]
[ECO "C04"]
[WhiteElo "2031"]
[BlackElo "1882"]
[Annotator "ChessBase"]
[PlyCount "75"]
[EventDate "2022.01.21"]
[EventType "swiss"]
[EventCountry "ENG"]
[SourceTitle "playchess.com"]
[Source "ChessBase"]
[SourceQuality "1"]
[TimeControl "5400+30"]

1. e4 {[%emt 0:00:37]} e6 {[%emt 0:00:07]} 2. d4 {[%emt 0:00:03]} d5 {[%emt 0:00:06]} 3. Nd2 {[%emt 0:00:06]} Nc6 {[%emt 0:00:23]} 4. Ngf3 {[%emt 0:00:22]} Nf6 {[%emt 0:00:11]} 5. e5 {[%emt 0:00:08]} Nd7 {[%emt 0:00:14]} 6. Bd3 {[%emt 0:00:12]} f6 {[%emt 0:02:17]} 7. Ng5 {[%emt 0:01:02]} fxg5 {[%emt 0:05:20]} 8. Qh5+ {[%emt 0:00:29]} g6 {[%emt 0:11:36]} 9. Bxg6+ {[%emt 0:00:21]} hxg6 {[%emt 0:00:12]} 10. Qxg6+ {[%emt 0:00:19]} Ke7 {[%emt 0:00:17]} 11. Ne4 {[%emt 0:00:30]} Bh6 {[%emt 0:05:25]} 12. Bxg5+ {[%emt 0:00:10]} Bxg5 {[%emt 0:00:17]} 13. Qg7+ {[%emt 0:00:05]} Ke8 {[%emt 0:00:46]} 14. Qxh8+ {[%emt 0:00:05]} Nf8 {[%emt 0:04:24]} 15. Qh5+ {[%emt 0:00:07]} Kd7 {[%emt 0:01:25]} 16. Nc5+ {[%emt 0:00:09]} Ke7 {[%emt 0:00:38]} 17. Qxg5+ {[%emt 0:00:09]} Kf7 {[%emt 0:01:14]} 18. Qxd8 {[%emt 0:01:09]} Nxd8 {[%emt 0:00:09]} 19. h4 {[%emt 0:00:35]} b6 {[%emt 0:00:49]} 20. Nd3 {[%emt 0:00:13]} Ba6 {[%emt 0:00:19]} 21. g4 {[%emt 0:02:10]} Nc6 {[%emt 0:00:34]} 22. Kd2 {[%emt 0:11:15]} Nxd4 {[%emt 0:00:31]} 23. Rh3 {[%emt 0:01:15]} Ng6 {[%emt 0:07:22]} 24. f4 {[%emt 0:03:25]} Kg7 {[%emt 0:03:14]} 25. h5 {[%emt 0:03:22]} Rh8 {[%emt 0:10:33]} 26. Rah1 {[%emt 0:18:50]} Bxd3 {[%emt 0:06:32]} 27. Rxd3 {[%emt 0:00:14]} c5 {[%emt 0:10:20]} 28. c3 {[%emt 0:01:38]} Ne2 {[%emt 0:05:37]} 29. Rf1 {[%emt 0:09:59]} Ngxf4 {[%emt 0:01:35]} 30. Re3 {[%emt 0:00:31]} Kh6 {[%emt 0:02:04]} 31. Rxe2 {[%emt 0:00:20]} Nxe2 {[%emt 0:00:06]} 32. Rf6+ {[%emt 0:00:09]} Kg5 {[%emt 0:01:16]} 33. Rg6+ {[%emt 0:00:06]} Kf4 {[%emt 0:00:29]} 34. Kxe2 {[%emt 0:00:05]} Kxe5 {[%emt 0:00:41]} 35. h6 {[%emt 0:00:16]} Kf4 {[%emt 0:01:14]} 36. g5 {[%emt 0:00:06]} Kf5 {[%emt 0:08:34]} 37. Rg7 {[%emt 0:00:09]} e5 {[%emt 0:00:44]} 38. h7 {[%emt 0:00:09]} 1-0

[Event "27th 4NCL Congress Open 2022"]
[Site "Harrogate"]
[Date "2022.01.22"]
[Round "2.19"]
[White "Stokes, Michael"]
[Black "Brencher, Paul"]
[Result "0-1"]
[ECO "B07"]
[WhiteElo "2071"]
[BlackElo "1875"]
[Annotator "ChessBase"]
[PlyCount "106"]
[EventDate "2022.01.21"]
[EventType "swiss"]
[EventCountry "ENG"]
[SourceTitle "playchess.com"]
[Source "ChessBase"]
[SourceQuality "1"]
[TimeControl "5400+30"]

1. e4 {[%emt 0:01:56]} d6 {[%emt 0:00:09]} 2. d4 {[%emt 0:00:10]} Nf6 {[%emt 0:00:07]} 3. Nc3 {[%emt 0:00:09]} c6 {[%emt 0:00:08]} 4. f4 {[%emt 0:00:13]} Qa5 {[%emt 0:00:08]} 5. Bd3 {[%emt 0:03:07]} e5 {[%emt 0:00:06]} 6. Nf3 {[%emt 0:02:45]} exd4 {[%emt 0:00:15]} 7. Nxd4 {[%emt 0:00:10]} g6 {[%emt 0:00:08]} 8. O-O {[%emt 0:01:00]} Bg7 {[%emt 0:00:05]} 9. Kh1 {[%emt 0:02:19]} O-O {[%emt 0:00:13]} 10. Be2 {[%emt 0:04:21]} Nbd7 {[%emt 0:02:31]} 11. Nb3 {[%emt 0:06:11]} Qc7 {[%emt 0:02:07]} 12. Be3 {[%emt 0:01:06]} b5 {[%emt 0:14:01]} 13. Bf3 {[%emt 0:05:53]} Bb7 {[%emt 0:05:47]} 14. Qd3 {[%emt 0:03:24]} Rad8 {[%emt 0:07:17]} 15. Rad1 {[%emt 0:05:32]} Nb6 {[%emt 0:01:22]} 16. Nd2 {[%emt 0:03:56]} b4 {[%emt 0:12:06]} 17. Bxb6 {[%emt 0:01:41]} axb6 {[%emt 0:06:36]} 18. Ne2 {[%emt 0:00:36]} b5 {[%emt 0:00:38]} 19. Qb3 {[%emt 0:10:42]} c5 {[%emt 0:02:28]} 20. Ng3 {[%emt 0:05:05]} Rfe8 {[%emt 0:05:04]} 21. f5 {[%emt 0:03:46]} d5 {[%emt 0:11:09]} 22. fxg6 {[%emt 0:01:30]} hxg6 {[%emt 0:00:35]} 23. Qe3 {[%emt 0:09:42]} Nxe4 {[%emt 0:06:48]} 24. Ndxe4 {[%emt 0:02:12]} dxe4 {[%emt 0:00:10]} 25. Rxd8 {[%emt 0:07:34]} Qxd8 {[%emt 0:00:26]} 26. Bg4 {[%emt 0:04:31]} Qe7 {[%emt 0:08:03]} 27. Be2 {[%emt 0:03:48]} Bc6 {[%emt 0:01:13]} 28. Qb3 {[%emt 0:02:58]} c4 {[%emt 0:01:47]} 29. Qe3 {[%emt 0:00:49]} Bxb2 {[%emt 0:00:29]} 30. Bg4 {[%emt 0:01:10]} Bg7 {[%emt 0:01:18]} 31. Ne2 {[%emt 0:00:55]} Bd7 {[%emt 0:02:06]} 32. Bxd7 {[%emt 0:01:20]} Qxd7 {[%emt 0:00:01]} 33. Qc5 {[%emt 0:00:22]} Bf8 {[%emt 0:03:45]} 34. Qg5 {[%emt 0:00:40]} Bg7 {[%emt 0:01:28]} 35. h4 {[%emt 0:01:23]} Re5 {[%emt 0:00:55]} 36. Qg3 {[%emt 0:02:19]} Rf5 {[%emt 0:00:59]} 37. Nf4 {[%emt 0:02:01]} Be5 {[%emt 0:02:51]} 38. Qe3 {[%emt 0:00:13]} Bxf4 {[%emt 0:00:48]} 39. Rxf4 {[%emt 0:00:03]} Rxf4 {[%emt 0:00:49]} 40. Qxf4 {[%emt 0:00:02]} Qd1+ {[%emt 0:00:45]} 41. Kh2 {[%emt 0:00:02]} Qxc2 {[%emt 0:00:10]} 42. Qb8+ {[%emt 0:00:32]} Kh7 {[%emt 0:00:41]} 43. Qe8 {[%emt 0:00:05]} Qf2 {[%emt 0:00:32]} 44. Qxe4 {[%emt 0:00:05]} Qf5 {[%emt 0:00:48]} 45. Qe2 {[%emt 0:00:23]} c3 {[%emt 0:00:24]} 46. g4 {[%emt 0:00:16]} Qf4+ {[%emt 0:00:21]} 47. Kh3 {[%emt 0:00:14]} Qc4 {[%emt 0:00:51]} 48. Qc2 {[%emt 0:00:20]} Qd4 {[%emt 0:00:46]} 49. h5 {[%emt 0:00:49]} Qe3+ {[%emt 0:00:18]} 50. Kh4 {[%emt 0:00:12]} Kg7 {[%emt 0:00:10]} 51. h6+ {[%emt 0:01:49]} Kxh6 {[%emt 0:00:09]} 52. g5+ {[%emt 0:00:40]} Qxg5+ {[%emt 0:00:06]} 53. Kh3 {[%emt 0:00:04]} Qf5+ {[%emt 0:00:05]} 0-1

[Event "27th 4NCL Congress Open 2022"]
[Site "Harrogate"]
[Date "2022.01.22"]
[Round "2.21"]
[White "Pink, Joshua"]
[Black "De Sousa Muachikape, Jael"]
[Result "1-0"]
[ECO "B12"]
[WhiteElo "1939"]
[BlackElo "1841"]
[Annotator "ChessBase"]
[PlyCount "39"]
[EventDate "2022.01.21"]
[EventType "swiss"]
[EventCountry "ENG"]
[SourceTitle "playchess.com"]
[Source "ChessBase"]
[SourceQuality "1"]
[TimeControl "5400+30"]

1. e4 {[%emt 0:03:54]} c6 {[%emt 0:00:08]} 2. d4 {[%emt 0:00:17]} d5 {[%emt 0:00:03]} 3. e5 {[%emt 0:00:36]} Bf5 {[%emt 0:00:08]} 4. Nc3 {[%emt 0:00:11]} e6 {[%emt 0:00:09]} 5. g4 {[%emt 0:00:09]} Bg6 {[%emt 0:00:15]} 6. Nge2 {[%emt 0:00:07]} c5 {[%emt 0:05:21]} 7. h4 {[%emt 0:00:10]} f6 {[%emt 0:03:43]} 8. h5 {[%emt 0:06:58]} Bf7 {[%emt 0:00:07]} 9. f4 {[%emt 0:00:11]} cxd4 {[%emt 0:00:05]} 10. Nxd4 {[%emt 0:00:23]} fxe5 {[%emt 0:00:26]} 11. Bb5+ {[%emt 0:01:12]} Nd7 {[%emt 0:00:10]} 12. fxe5 {[%emt 0:01:02]} Bb4 {[%emt 0:00:56]} 13. O-O {[%emt 0:03:44]} Qh4 {[%emt 0:03:39]} 14. Bxd7+ {[%emt 0:02:51]} Kxd7 {[%emt 0:00:12]} 15. Rxf7+ {[%emt 0:00:56]} Ne7 {[%emt 0:00:11]} 16. Qf3 {[%emt 0:02:04]} Qe1+ {[%emt 0:00:29]} 17. Kg2 {[%emt 0:03:34]} Rhf8 {[%emt 0:08:22]} 18. Rxf8 {[%emt 0:02:08]} Rxf8 {[%emt 0:00:22]} 19. Qxf8 {[%emt 0:01:04]} Nf5 {[%emt 0:01:29]} 20. Qf7+ {[%emt 0:00:21]} 1-0

[Event "27th 4NCL Congress Open 2022"]
[Site "Harrogate"]
[Date "2022.01.22"]
[Round "2.22"]
[White "Miller, George"]
[Black "Bak, Christopher"]
[Result "1/2-1/2"]
[ECO "C11"]
[WhiteElo "1796"]
[BlackElo "2022"]
[Annotator "ChessBase"]
[PlyCount "60"]
[EventDate "2022.01.21"]
[EventType "swiss"]
[EventCountry "ENG"]
[SourceTitle "playchess.com"]
[Source "ChessBase"]
[SourceQuality "1"]
[TimeControl "5400+30"]

1. e4 {[%emt 0:03:15]} e6 {[%emt 0:00:10]} 2. Nc3 {[%emt 0:00:11]} d5 {[%emt 0:00:07]} 3. Nf3 {[%emt 0:00:10]} Nf6 {[%emt 0:00:13]} 4. e5 {[%emt 0:00:17]} Nfd7 {[%emt 0:00:09]} 5. d4 {[%emt 0:00:08]} c5 {[%emt 0:00:06]} 6. Bg5 {[%emt 0:00:12]} Qb6 {[%emt 0:00:07]} 7. dxc5 {[%emt 0:00:07]} Bxc5 {[%emt 0:00:08]} 8. Qd2 {[%emt 0:00:58]} Nc6 {[%emt 0:01:36]} 9. Na4 {[%emt 0:04:29]} Bxf2+ {[%emt 0:14:05]} 10. Qxf2 {[%emt 0:13:29]} Qb4+ {[%emt 0:02:58]} 11. Nc3 {[%emt 0:00:09]} Qxb2 {[%emt 0:01:55]} 12. Kd2 {[%emt 0:00:12]} Qxa1 {[%emt 0:07:41]} 13. Nb5 {[%emt 0:01:01]} Ncxe5 {[%emt 0:44:27]} 14. Bd3 {[%emt 0:20:09]} Nxd3 {[%emt 0:02:32]} 15. Kxd3 {[%emt 0:08:21]} Qxa2 {[%emt 0:04:11]} 16. Nc7+ {[%emt 0:14:23]} Kf8 {[%emt 0:00:03]} 17. Nxa8 {[%emt 0:01:02]} Qc4+ {[%emt 0:01:03]} 18. Kd2 {[%emt 0:00:18]} Nc5 {[%emt 0:00:37]} 19. Re1 {[%emt 0:07:32]} b6 {[%emt 0:03:14]} 20. Ne5 {[%emt 0:06:34]} Qb4+ {[%emt 0:00:07]} 21. Kc1 {[%emt 0:02:56]} f5 {[%emt 0:01:36]} 22. Bf4 {[%emt 0:07:31]} g5 {[%emt 0:06:32]} 23. Bxg5 {[%emt 0:00:55]} Ne4 {[%emt 0:01:27]} 24. Bh6+ {[%emt 0:00:28]} Ke8 {[%emt 0:02:01]} 25. Qh4 {[%emt 0:05:25]} Qa3+ {[%emt 0:01:37]} 26. Kd1 {[%emt 0:00:09]} Qa1+ {[%emt 0:00:21]} 27. Bc1 {[%emt 0:02:11]} Nc3+ {[%emt 0:03:58]} 28. Kd2 {[%emt 0:00:09]} Nb1+ {[%emt 0:00:06]} 29. Kd1 {[%emt 0:00:19]} Nc3+ {[%emt 0:00:27]} 30. Kd2 {[%emt 0:00:05]} Nb1+ {[%emt 0:00:55]} 1/2-1/2

[Event "27th 4NCL Congress Open 2022"]
[Site "Harrogate"]
[Date "2022.01.22"]
[Round "2.23"]
[White "Coates, Sam"]
[Black "Bayford, Jim R"]
[Result "1-0"]
[ECO "A22"]
[WhiteElo "1689"]
[BlackElo "2023"]
[Annotator "NA"]
[PlyCount "79"]
[EventDate "2022.01.21"]
[EventType "swiss"]
[EventCountry "ENG"]
[SourceTitle "playchess.com"]
[Source "ChessBase"]
[SourceQuality "1"]
[TimeControl "5400+30"]

1. c4 {[%emt 0:00:07]} e5 {[%emt 0:00:26]} 2. Nc3 {[%emt 0:00:46]} Nf6 {[%emt 0:01:09]} 3. g3 {[%emt 0:01:55]} d5 {[%emt 0:01:28]} 4. cxd5 {[%emt 0:01:20]} Nxd5 {[%emt 0:00:20]} 5. Bg2 {[%emt 0:00:52]} Nxc3 {[%emt 0:00:53]} 6. bxc3 {[%emt 0:00:25]} c6 {[%emt 0:01:09]} 7. Nf3 {[%emt 0:05:38]} Bd6 {[%emt 0:01:12]} 8. O-O {[%emt 0:01:25]} O-O {[%emt 0:00:25]} 9. d3 {[%emt 0:08:55]} h6 {[%emt 0:01:51]} 10. Qc2 {[%emt 0:02:14]} Bf5 {[%emt 0:04:24]} 11. Nd2 {[%emt 0:06:29]} Nd7 {[%emt 0:01:30]} 12. Nc4 {[%emt 0:02:28]} Bc7 {[%emt 0:01:26]} 13. f4 {[%emt 0:03:04]} exf4 {[%emt 0:04:02]} 14. Bxf4 {[%emt 0:00:35]} Bg6 {[%emt 0:02:16]} 15. Rad1 {[%emt 0:04:58]} Nb6 {[%emt 0:01:10]} 16. Ne5 {[%emt 0:05:45]} Bh7 {[%emt 0:04:53]} 17. e4 {[%emt 0:02:34]} g5 {[%emt 0:02:08]} 18. Ng4 {[%emt 0:08:43]} gxf4 {[%emt 0:00:50]} 19. gxf4 {[%emt 0:01:48]} h5 {[%emt 0:07:52]} 20. Ne3 {[%emt 0:07:53]} Qh4 {[%emt 0:02:27]} 21. e5 {[%emt 0:00:31]} Nd5 {[%emt 0:02:40]} 22. Nxd5 {[%emt 0:01:33]} cxd5 {[%emt 0:05:22]} 23. Bxd5 {[%emt 0:00:50]} Kh8 {[%emt 0:01:42]} 24. Kh1 {[%emt 0:00:53]} Bb6 {[%emt 0:02:43]} 25. Qe2 {[%emt 0:02:46]} Bf5 {[%emt 0:02:45]} 26. d4 $17 {[%emt 0:05:39]} Bg4 {[%emt 0:08:14]} 27. Bf3 {[%emt 0:01:19]} Rg8 {[%emt 0:00:35]} 28. Rg1 {[%emt 0:09:26]} Rac8 {[%emt 0:05:18]} 29. Rd3 {[%emt 0:04:12]} Bxf3+ {[%emt 0:04:37]} 30. Rxf3 {[%emt 0:00:18]} Rxg1+ {[%emt 0:04:58]} 31. Kxg1 {[%emt 0:00:03]} Qg4+ {[%emt 0:00:28]} 32. Kf1 {[%emt 0:03:13]} Rg8 {[%emt 0:02:20]} 33. Qf2 {[%emt 0:00:42]} Qf5 {[%emt 0:01:29]} 34. Rg3 {[%emt 0:02:46]} Qb1+ {[%emt 0:04:47]} 35. Kg2 {[%emt 0:00:21]} Qe4+ {[%emt 0:01:38]} 36. Kh3 {[%emt 0:02:35]} Qf5+ {[%emt 0:01:24]} 37. Kg2 {[%emt 0:00:27]} Bd8 {[%emt 0:01:15]} 38. Qf3 {[%emt 0:01:07]} Qc2+ {[%emt 0:05:02]} 39. Kh3 {[%emt 0:00:16]} Qxa2 {[%emt 0:00:19]} 40. Qxh5# {[%emt 0:00:06]} 1-0

[Event "27th 4NCL Congress Open 2022"]
[Site "Harrogate"]
[Date "2022.01.22"]
[Round "2.24"]
[White "May, Paul"]
[Black "Faulkner, Martin J"]
[Result "0-1"]
[ECO "E27"]
[WhiteElo "1735"]
[BlackElo "1833"]
[Annotator "NA"]
[PlyCount "78"]
[EventDate "2022.01.21"]
[EventType "swiss"]
[EventCountry "ENG"]
[SourceTitle "playchess.com"]
[Source "ChessBase"]
[SourceQuality "1"]
[TimeControl "5400+30"]

1. d4 {[%emt 0:00:03]} Nf6 {[%emt 0:00:03]} 2. c4 {[%emt 0:00:05]} e6 {[%emt 0:00:04]} 3. Nc3 {[%emt 0:00:06]} Bb4 {[%emt 0:00:05]} 4. f3 {[%emt 0:00:33]} O-O {[%emt 0:00:18]} 5. a3 {[%emt 0:00:45]} Bxc3+ {[%emt 0:00:43]} 6. bxc3 {[%emt 0:00:09]} Ne8 {[%emt 0:04:23]} 7. e4 {[%emt 0:07:58]} b6 {[%emt 0:01:08]} 8. Bd3 {[%emt 0:05:42]} Ba6 {[%emt 0:02:47]} 9. e5 {[%emt 0:12:35]} Nc6 {[%emt 0:08:18]} 10. Qc2 {[%emt 0:07:08]} h6 {[%emt 0:00:19]} 11. Be3 {[%emt 0:06:26]} Na5 {[%emt 0:02:06]} 12. Qe2 {[%emt 0:00:49]} d5 {[%emt 0:07:34]} 13. cxd5 {[%emt 0:07:21]} Bxd3 {[%emt 0:01:41]} 14. Qxd3 {[%emt 0:00:08]} Qxd5 {[%emt 0:14:44]} 15. Ne2 {[%emt 0:08:19]} Rd8 {[%emt 0:03:00]} 16. Qc2 {[%emt 0:12:57]} Nc4 {[%emt 0:03:08]} 17. Bc1 {[%emt 0:04:06]} c5 {[%emt 0:06:21]} 18. Nf4 {[%emt 0:04:30]} Qc6 {[%emt 0:00:59]} 19. Ne2 {[%emt 0:04:01]} Nc7 {[%emt 0:04:52]} 20. Qe4 {[%emt 0:03:48]} Qxe4 {[%emt 0:06:23]} 21. fxe4 {[%emt 0:00:06]} cxd4 {[%emt 0:00:27]} 22. cxd4 {[%emt 0:01:08]} Nb5 {[%emt 0:00:11]} 23. O-O {[%emt 0:05:05]} Nxd4 {[%emt 0:00:10]} 24. Ng3 {[%emt 0:01:28]} Nb3 {[%emt 0:06:48]} 25. Ra2 {[%emt 0:00:55]} Nxe5 {[%emt 0:01:59]} 26. Be3 {[%emt 0:02:56]} Rd3 {[%emt 0:04:47]} 27. Bf4 {[%emt 0:01:52]} Nc4 {[%emt 0:00:36]} 28. Nh5 {[%emt 0:01:00]} Rfd8 {[%emt 0:01:52]} 29. a4 {[%emt 0:01:49]} Ncd2 {[%emt 0:04:08]} 30. Re1 {[%emt 0:00:54]} Nc4 {[%emt 0:01:01]} 31. Rf1 {[%emt 0:00:26]} Nc5 {[%emt 0:01:01]} 32. Re1 {[%emt 0:00:32]} e5 {[%emt 0:00:39]} 33. Bc1 {[%emt 0:00:22]} Rd1 {[%emt 0:00:50]} 34. Rae2 {[%emt 0:00:51]} Rxe1+ {[%emt 0:02:27]} 35. Rxe1 {[%emt 0:00:07]} Nxa4 {[%emt 0:00:30]} 36. Ng3 {[%emt 0:00:16]} Nc3 {[%emt 0:00:43]} 37. Nf5 {[%emt 0:00:42]} Kf8 {[%emt 0:01:01]} 38. Kf2 {[%emt 0:00:42]} a5 {[%emt 0:00:42]} 39. h3 {[%emt 0:00:45]} a4 {[%emt 0:00:39]} 0-1

[Event "27th 4NCL Congress Open 2022"]
[Site "Harrogate"]
[Date "2022.01.22"]
[Round "3.5"]
[White "Jones, Steven A"]
[Black "Townsend, M Paul"]
[Result "1-0"]
[ECO "C01"]
[WhiteElo "2212"]
[BlackElo "2159"]
[Annotator "ChessBase"]
[PlyCount "95"]
[EventDate "2022.01.21"]
[EventType "swiss"]
[EventCountry "ENG"]
[SourceTitle "playchess.com"]
[Source "ChessBase"]
[SourceQuality "1"]
[TimeControl "5400+30"]

1. e4 {[%emt 0:00:14]} e6 {[%emt 0:00:13]} 2. d4 {[%emt 0:00:53]} d5 {[%emt 0:00:10]} 3. exd5 {[%emt 0:00:35]} exd5 {[%emt 0:00:07]} 4. Nf3 {[%emt 0:00:10]} Nf6 {[%emt 0:00:27]} 5. Bd3 {[%emt 0:00:38]} c5 {[%emt 0:01:37]} 6. O-O {[%emt 0:00:37]} c4 {[%emt 0:02:01]} 7. Re1+ {[%emt 0:00:03]} Be7 {[%emt 0:00:07]} 8. Bf1 {[%emt 0:00:14]} O-O {[%emt 0:00:22]} 9. b3 {[%emt 0:06:03]} cxb3 {[%emt 0:08:08]} 10. axb3 {[%emt 0:00:05]} Nc6 {[%emt 0:00:47]} 11. Ne5 {[%emt 0:15:34]} Nxe5 {[%emt 0:14:20]} 12. dxe5 {[%emt 0:04:15]} Ne4 {[%emt 0:01:23]} 13. Bd3 {[%emt 0:04:34]} Bb4 {[%emt 0:12:12]} 14. c3 {[%emt 0:04:19]} Bc5 {[%emt 0:08:20]} 15. Be3 {[%emt 0:07:00]} Bxe3 {[%emt 0:02:26]} 16. Rxe3 {[%emt 0:00:10]} Bf5 {[%emt 0:01:12]} 17. Qc2 {[%emt 0:02:53]} Bg6 {[%emt 0:10:34]} 18. Nd2 {[%emt 0:02:22]} Nc5 {[%emt 0:04:12]} 19. Bxg6 {[%emt 0:02:23]} hxg6 {[%emt 0:00:05]} 20. Nf3 {[%emt 0:01:43]} Qb6 {[%emt 0:01:27]} 21. Nd4 {[%emt 0:02:35]} Rac8 {[%emt 0:01:27]} 22. h4 {[%emt 0:04:44]} Ne6 {[%emt 0:04:11]} 23. Nxe6 {[%emt 0:01:10]} Qxe6 {[%emt 0:00:26]} 24. Qd3 {[%emt 0:04:12]} a6 {[%emt 0:00:37]} 25. Ra4 {[%emt 0:00:39]} Rc5 {[%emt 0:02:57]} 26. Rd4 {[%emt 0:03:53]} Rfc8 {[%emt 0:01:25]} 27. Qd2 {[%emt 0:07:21]} Qc6 {[%emt 0:02:45]} 28. Rdd3 {[%emt 0:01:48]} a5 {[%emt 0:00:58]} 29. Rh3 {[%emt 0:04:14]} b5 {[%emt 0:04:52]} 30. h5 {[%emt 0:02:14]} Qe6 {[%emt 0:08:24]} 31. hxg6 {[%emt 0:05:29]} fxg6 {[%emt 0:00:07]} 32. Qg5 {[%emt 0:01:17]} Qf5 {[%emt 0:05:12]} 33. Qh4 {[%emt 0:00:59]} Qh5 {[%emt 0:00:51]} 34. Qe7 {[%emt 0:00:24]} Qf5 {[%emt 0:00:24]} 35. Rhf3 {[%emt 0:01:00]} R5c7 {[%emt 0:00:27]} 36. Qd6 {[%emt 0:01:01]} Qd7 {[%emt 0:01:02]} 37. Qxg6 {[%emt 0:00:18]} Rc6 {[%emt 0:00:41]} 38. Qg5 {[%emt 0:01:57]} a4 {[%emt 0:00:22]} 39. Qd2 {[%emt 0:03:08]} a3 {[%emt 0:01:22]} 40. Rxd5 {[%emt 0:00:30]} Qe6 {[%emt 0:00:03]} 41. Rd8+ {[%emt 0:00:18]} Rxd8 {[%emt 0:00:21]} 42. Qxd8+ {[%emt 0:00:04]} Kh7 {[%emt 0:00:09]} 43. Rh3+ {[%emt 0:00:58]} Kg6 {[%emt 0:00:26]} 44. Qf8 {[%emt 0:01:09]} Qxh3 {[%emt 0:01:13]} 45. gxh3 {[%emt 0:00:42]} Ra6 {[%emt 0:00:16]} 46. Qc8 {[%emt 0:00:21]} Ra5 {[%emt 0:01:21]} 47. Qc7 {[%emt 0:00:15]} Ra6 {[%emt 0:00:08]} 48. Qb7 {[%emt 0:00:10]} 1-0

[Event "27th 4NCL Congress Open 2022"]
[Site "Harrogate"]
[Date "2022.01.22"]
[Round "3.6"]
[White "Bradbury, Neil H"]
[Black "Gardiner, Eric D"]
[Result "1/2-1/2"]
[ECO "D24"]
[WhiteElo "2241"]
[BlackElo "1982"]
[Annotator "ChessBase"]
[PlyCount "87"]
[EventDate "2022.01.21"]
[EventType "swiss"]
[EventCountry "ENG"]
[SourceTitle "playchess.com"]
[Source "ChessBase"]
[SourceQuality "1"]
[TimeControl "5400+30"]

1. d4 {[%emt 0:04:31]} d5 {[%emt 0:00:14]} 2. c4 {[%emt 0:00:11]} dxc4 {[%emt 0:00:07]} 3. Nf3 {[%emt 0:00:19]} a6 {[%emt 0:00:17]} 4. a4 {[%emt 0:02:55]} Nf6 {[%emt 0:10:11]} 5. e3 {[%emt 0:07:24]} Bg4 {[%emt 0:02:55]} 6. Bxc4 {[%emt 0:03:24]} e6 {[%emt 0:05:05]} 7. Nc3 {[%emt 0:05:17]} Nc6 {[%emt 0:02:25]} 8. h3 {[%emt 0:08:43]} Bh5 {[%emt 0:03:17]} 9. O-O {[%emt 0:03:52]} Be7 {[%emt 0:02:55]} 10. Re1 {[%emt 0:03:07]} O-O {[%emt 0:06:04]} 11. Bf1 {[%emt 0:06:16]} Bb4 {[%emt 0:06:48]} 12. g4 {[%emt 0:06:23]} Bg6 {[%emt 0:00:38]} 13. Bg2 {[%emt 0:00:41]} Ne4 {[%emt 0:09:06]} 14. Bd2 {[%emt 0:05:28]} Nxd2 {[%emt 0:09:44]} 15. Nxd2 {[%emt 0:01:00]} Qd7 {[%emt 0:06:45]} 16. Rc1 {[%emt 0:03:18]} Rad8 {[%emt 0:02:03]} 17. Nc4 {[%emt 0:07:54]} b5 {[%emt 0:09:11]} 18. axb5 {[%emt 0:12:03]} axb5 {[%emt 0:00:13]} 19. Na3 {[%emt 0:03:09]} Bxc3 {[%emt 0:07:08]} 20. bxc3 {[%emt 0:03:56]} Na5 {[%emt 0:02:33]} 21. Ra1 {[%emt 0:00:34]} c5 {[%emt 0:04:21]} 22. dxc5 {[%emt 0:04:46]} Qe7 {[%emt 0:00:52]} 23. Qe2 {[%emt 0:00:14]} Nb3 {[%emt 0:01:34]} 24. Ra2 {[%emt 0:02:20]} Qxc5 {[%emt 0:01:14]} 25. e4 {[%emt 0:01:28]} Qxc3 {[%emt 0:01:33]} 26. Nxb5 {[%emt 0:00:02]} Qe5 {[%emt 0:00:42]} 27. Na3 {[%emt 0:01:36]} Nd4 {[%emt 0:00:47]} 28. Qe3 {[%emt 0:00:11]} f6 {[%emt 0:04:35]} 29. Rd2 {[%emt 0:00:59]} Nc6 {[%emt 0:00:43]} 30. Nc4 {[%emt 0:01:53]} Qb5 {[%emt 0:00:46]} 31. Nd6 {[%emt 0:01:05]} Qb4 {[%emt 0:00:18]} 32. Red1 {[%emt 0:00:04]} e5 {[%emt 0:00:28]} 33. Nf5 {[%emt 0:00:23]} Rxd2 {[%emt 0:00:30]} 34. Qxd2 {[%emt 0:00:16]} Qxd2 {[%emt 0:00:20]} 35. Rxd2 {[%emt 0:00:05]} Bxf5 {[%emt 0:00:27]} 36. exf5 {[%emt 0:00:08]} Nd4 {[%emt 0:00:42]} 37. f4 {[%emt 0:01:16]} Rd8 {[%emt 0:00:18]} 38. Kf2 {[%emt 0:00:58]} exf4 {[%emt 0:00:55]} 39. Rb2 {[%emt 0:00:07]} g5 {[%emt 0:01:52]} 40. Rb6 {[%emt 0:01:13]} Kg7 {[%emt 0:00:00]} 41. Rb7+ {[%emt 0:00:06]} Kg8 {[%emt 0:00:00]} 42. Rb6 {[%emt 0:00:07]} Kg7 {[%emt 0:00:00]} 43. Rb7+ {[%emt 0:00:04]} Kg8 {[%emt 0:00:00]} 44. Rb6 {[%emt 0:00:42]} 1/2-1/2